bitfinex/quotes_ETHUSD_20251119
["timestamp","ask_amount","ask_price","bid_price","bid_amount"]
[1763531325119,2.60260742,3015.1,3012.8,0.405504]
[1763531325314,1.64443859,3014.7,3012.9,0.03319061]
[1763531325514,1.64443859,3014.7,3013.0,0.03318951]
[1763531325740,1.39319264,3014.6,3011.0,0.001]
[1763531325943,3.91679678,3014.1,3011.0,0.03421155]
[1763531326146,0.90699264,3014.0,3011.0,0.03421155]
[1763531326356,0.52197836,3013.8,3011.0,0.03421155]
[1763531326932,1.428971,3013.8,3011.0,0.03421155]
[1763531327127,1.428971,3013.8,3011.1,0.405504]
[1763531327361,1.428971,3013.8,3011.3,0.405504]
[1763531327663,1.61709704,3014.1,3011.5,0.405504]
[1763531327965,1.61631981,3014.2,3011.7,0.405504]
[1763531328255,1.61631981,3014.2,3011.3,0.90699264]
[1763531328256,1.69704643,3014.3,3011.9,0.405504]
[1763531328464,2.29969974,3014.5,3012.1,0.405504]
[1763531328465,1.66481284,3014.4,3012.1,0.405504]
[1763531328627,1.61631981,3014.2,3012.3,0.405504]
[1763531328829,4.82301219,3014.2,3012.5,0.405504]
[1763531329026,2.29969974,3014.0,3012.6,0.03319391]
[1763531329226,2.29969974,3014.0,3011.0,0.03421155]
[1763531329532,2.29969974,3013.9,3011.0,0.03421155]
[1763531329739,4.82378942,3014.1,3011.1,0.405504]
[1763531329951,4.82378942,3014.1,3011.3,0.405504]
[1763531330231,4.82378942,3014.1,3011.0,0.001]
[1763531330232,4.82378942,3014.1,3011.5,0.405504]
[1763531330432,4.82378942,3014.1,3011.7,0.405504]
[1763531330662,2.52408968,3014.1,3011.9,0.405504]
[1763531330860,2.52408968,3014.1,3012.1,0.405504]
[1763531331164,2.52408968,3014.1,3012.3,0.405504]
[1763531331327,2.52408968,3014.1,3012.5,0.405504]
[1763531331532,4.82378942,3014.1,3012.6,0.03319391]
[1763531332458,2.52408968,3014.1,3012.6,0.03319391]
[1763531332663,2.29969974,3014.0,3012.6,0.03319391]
[1763531333636,2.29969974,3014.0,3011.0,0.001]
[1763531333852,2.29969974,3014.0,3011.2,0.405504]
[1763531334053,2.29969974,3014.0,3011.4,0.405504]
[1763531334256,2.48359974,3013.9,3011.6,0.405504]
[1763531334458,2.48359974,3013.9,3011.0,0.001]
[1763531334459,2.29969974,3013.7,3011.8,0.405504]
[1763531334656,2.29969974,3013.7,3012.0,0.405504]
[1763531334871,0.1839,3013.9,3012.2,0.405504]
[1763531334872,2.29969974,3013.6,3012.2,0.405504]
[1763531335074,2.29969974,3013.8,3012.3,0.03319721]
[1763531335875,4.45171247,3013.7,3011.0,0.001]
[1763531336088,1.73204965,3012.6,3011.0,0.001]
[1763531336290,1.73204965,3012.3,3011.0,0.03421155]
[1763531336583,1.6291568,3011.9,3011.0,0.001]
[1763531336884,1.73204965,3011.7,3011.0,0.001]
[1763531337772,0.90699264,3011.8,3011.0,0.001]
[1763531337773,1.73204965,3011.6,3011.0,0.001]
[1763531338284,1.73204965,3011.7,3011.0,0.001]
[1763531338788,1.73204965,3011.7,3011.1,0.405504]
[1763531339002,1.73204965,3011.6,3011.0,0.001]
[1763531339497,1.73204965,3011.4,3011.0,0.001]
[1763531339900,1.73204965,3011.6,3011.0,0.001]
[1763531340058,1.73204965,3011.5,3011.0,0.001]
[1763531340258,1.73204965,3011.4,3011.0,0.001]
[1763531340685,1.6291568,3011.9,3011.0,0.001]
[1763531340686,1.73204965,3011.9,3011.1,0.405504]
[1763531340878,4.01242818,3012.9,3011.3,0.405504]
[1763531340879,1.73204965,3012.2,3011.3,0.405504]
[1763531341292,1.73204965,3012.6,3011.5,0.405504]
[1763531341558,1.73204965,3012.6,3011.7,0.405504]
[1763531341559,3.41302353,3012.6,3011.7,0.405504]
[1763531341779,1.73204965,3012.3,3011.0,0.001]
[1763531342055,0.90699264,3012.5,3011.1,0.405504]
[1763531342056,1.73204965,3012.2,3011.1,0.405504]
[1763531342382,0.90699264,3012.5,3011.0,0.03421155]
[1763531342383,2.53614944,3011.9,3011.0,0.03421155]
[1763531342584,2.63904229,3011.8,3011.0,0.03421155]
[1763531342783,1.73204965,3011.7,3011.0,0.001]
[1763531342987,2.63904229,3011.8,3011.0,0.001]
[1763531343508,1.73204965,3011.6,3011.0,0.001]
[1763531343681,0.90699264,3011.5,3011.0,0.001]
[1763531343878,2.63904229,3011.5,3011.0,0.001]
[1763531344077,1.73204965,3011.2,3011.0,0.001]
[1763531344317,1.73204965,3011.1,3011.0,0.001]
[1763531344499,3.20669238,3011.6,3011.0,0.001]
[1763531344500,1.73204965,3011.2,3011.0,0.001]
[1763531344806,1.15486265,3011.1,3011.0,0.001]
[1763531345714,0.1935277,3011.1,3011.0,0.001]
[1763531346006,1.64602115,3011.3,3011.0,0.001]
[1763531346208,0.52225658,3011.1,3011.0,0.001]
[1763531346512,1.15410294,3011.1,3011.0,0.001]
[1763531346712,1.15410294,3011.2,3011.0,0.001]
[1763531347493,2.29969974,3011.2,3011.0,0.001]
[1763531347710,2.57500823,3011.2,3011.0,0.001]
[1763531348014,2.82845186,3011.5,3011.0,0.001]
[1763531348015,2.30727706,3011.3,3011.0,0.001]
[1763531348216,0.90699264,3011.4,3011.0,0.001]
[1763531348389,1.73030874,3011.1,3011.0,0.001]
[1763531348590,3.2142697,3011.4,3011.0,0.001]
[1763531348804,1.73031316,3011.1,3011.0,0.001]
[1763531348992,2.30727706,3011.2,3011.0,0.001]
[1763531349193,4.88228529,3011.2,3011.0,0.001]
[1763531349519,2.19032025,3011.2,3011.0,0.001]
[1763531350284,2.57572101,3011.1,3011.0,0.001]
[1763531350485,2.15802837,3011.1,3011.0,0.001]
[1763531350686,5.89347287,3011.1,3010.7,0.001]
[1763531350884,2.50715787,3010.8,3010.7,0.001]
[1763531351326,2.5293494,3010.9,3010.7,0.001]
[1763531351498,2.50715787,3010.8,3010.7,0.001]
[1763531351885,4.8093496,3010.8,3010.7,0.001]
[1763531352090,5.33174288,3010.8,3010.7,0.001]
[1763531352321,2.99645787,3010.8,3010.7,0.001]
[1763531352526,2.50715787,3010.8,3010.7,0.001]
[1763531353189,0.90699264,3010.8,3010.7,0.001]
[1763531353385,2.99645787,3010.8,3010.7,0.001]
[1763531353690,5.82490973,3010.8,3010.7,0.001]
[1763531353892,2.5343241,3010.7,3010.4,0.001]
[1763531354229,0.90699264,3010.4,3010.0,0.001]
[1763531354393,2.5520698,3010.4,3010.0,0.001]
[1763531354589,3.0413698,3010.4,3010.0,0.001]
[1763531354798,5.91766116,3010.4,3010.0,0.001]
[1763531355027,3.0413698,3010.4,3010.0,0.001]
[1763531355325,1.68100314,3010.3,3010.0,0.001]
[1763531355528,3.4163652,3010.3,3010.0,0.001]
[1763531355831,2.58023856,3010.1,3010.0,0.001]
[1763531356203,2.50161534,3010.1,3010.0,0.001]
[1763531356405,7.42742336,3010.1,3010.0,0.001]
[1763531356605,7.08835394,3010.1,3010.0,0.001]
[1763531356925,3.06953856,3010.1,3010.0,0.001]
[1763531357443,4.01881538,3010.3,3010.0,0.001]
[1763531357650,1.68100314,3010.3,3010.0,0.001]
[1763531357835,2.17030314,3010.3,3010.0,0.001]
[1763531358041,1.68100314,3010.3,3010.0,0.001]
[1763531358210,3.96869844,3010.1,3010.0,0.001]
[1763531358537,2.58023856,3010.1,3010.0,0.001]
[1763531358845,0.90699264,3010.1,3010.0,0.001]
[1763531359024,4.87569108,3010.1,3010.0,0.001]
[1763531359625,2.53040468,3010.1,3010.0,0.001]
[1763531360027,3.64191128,3010.1,3010.0,0.001]
[1763531360247,4.82650241,3010.1,3010.0,0.001]
[1763531360413,5.31580241,3010.1,3010.0,0.001]
[1763531360750,3.01970468,3010.1,3010.0,0.001]
[1763531361112,2.53040468,3010.1,3010.0,0.001]
[1763531361316,2.2952993,3010.1,3010.0,0.001]
[1763531361825,1.14816835,3010.2,3010.0,0.001]
[1763531362224,1.14816835,3010.1,3010.0,0.001]
[1763531362453,1.7222473,3010.3,3010.0,0.001]
[1763531362454,1.14816835,3010.2,3010.0,0.001]
[1763531362949,1.14816835,3010.3,3010.0,0.001]
[1763531363148,1.14816835,3010.5,3010.0,0.001]
[1763531363353,1.14816835,3010.2,3010.0,0.001]
[1763531363555,3.20229194,3010.1,3010.0,0.001]
[1763531363737,0.90699264,3010.1,3010.0,0.001]
[1763531363919,2.63131273,3010.1,3010.0,0.001]
[1763531364555,1.15039062,3010.1,3010.0,0.001]
[1763531365327,1.72432009,3010.2,3010.0,0.001]
[1763531365637,3.94037646,3010.4,3010.0,0.001]
[1763531365838,2.2952993,3010.4,3010.0,0.001]
[1763531366164,1.68100314,3010.3,3010.0,0.001]
[1763531366749,1.72784032,3010.2,3010.0,0.001]
[1763531367919,1.15248889,3010.1,3010.0,0.001]
[1763531368123,1.15248889,3010.5,3010.1,0.405504]
[1763531368319,1.15248889,3010.5,3010.3,0.405504]
[1763531368849,0.96258889,3010.6,3010.0,0.001]
[1763531369026,1.72784032,3010.9,3010.0,0.001]
[1763531369227,2.2952993,3011.3,3010.0,0.001]
[1763531369228,1.72784032,3011.0,3010.1,0.405504]
[1763531369428,0.19696495,3011.3,3010.3,0.405504]
[1763531369429,1.72784032,3011.3,3010.3,0.405504]
[1763531369627,2.86872158,3011.9,3010.5,0.405504]
[1763531369628,1.72784032,3011.9,3010.5,0.405504]
[1763531369949,1.72784032,3011.9,3010.7,0.405504]
[1763531370155,1.72784032,3011.8,3010.7,0.405504]
[1763531370520,1.72784032,3011.9,3010.7,0.405504]
[1763531370720,2.76479962,3012.2,3010.7,0.405504]
[1763531370721,1.72784032,3011.4,3010.7,0.405504]
[1763531370915,0.90699264,3011.1,3010.0,0.001]
[1763531371120,0.90699264,3011.1,3010.0,0.03422259]
[1763531371121,1.72784032,3010.8,3010.0,0.03422259]
[1763531371349,1.72784032,3010.8,3010.0,0.001]
[1763531371550,2.86872158,3011.7,3010.0,0.001]
[1763531371551,1.72784032,3011.0,3010.1,0.405504]
[1763531371753,1.72784032,3011.0,3010.3,0.405504]
[1763531371918,1.72784032,3011.1,3010.5,0.405504]
[1763531372121,1.72784032,3011.1,3010.7,0.405504]
[1763531372321,1.72784032,3011.1,3010.9,0.405504]
[1763531372877,1.72784032,3011.1,3010.1,0.405504]
[1763531373056,1.72784032,3011.1,3010.3,0.405504]
[1763531373584,1.72784032,3011.0,3010.3,0.405504]
[1763531374182,3.20229194,3011.4,3010.3,0.405504]
[1763531374183,1.72784032,3011.1,3010.3,0.405504]
[1763531374852,1.72784032,3011.0,3010.3,0.405504]
[1763531375053,1.72784032,3011.1,3010.3,0.405504]
[1763531375585,1.72984032,3011.1,3010.3,0.405504]
[1763531375890,1.72784032,3011.0,3010.3,0.405504]
[1763531376247,1.72784032,3011.0,3010.0,0.001]
[1763531376447,1.72784032,3011.0,3010.0,0.03422259]
[1763531376448,1.72784032,3010.8,3010.0,0.03422259]
[1763531376680,1.72784032,3010.8,3010.0,0.001]
[1763531376979,1.72784032,3010.7,3010.0,0.001]
[1763531377703,1.72784032,3010.3,3010.0,0.001]
[1763531378451,1.72784032,3010.5,3010.0,0.001]
[1763531378954,1.72784032,3010.8,3010.0,0.001]
[1763531379284,0.002,3011.1,3010.1,0.405504]
[1763531379285,1.72784032,3010.7,3010.1,0.405504]
[1763531379482,1.72784032,3010.9,3010.1,0.405504]
[1763531379664,0.002,3011.1,3010.1,0.405504]
[1763531379665,1.72784032,3011.0,3010.1,0.405504]
[1763531380884,1.72784032,3010.9,3010.0,0.001]
[1763531381484,1.72784032,3011.0,3010.0,0.001]
[1763531381788,1.72784032,3010.9,3010.1,0.405504]
[1763531383354,1.72784032,3010.9,3010.0,0.03422259]
[1763531383355,2.50715787,3010.8,3010.0,0.001]
[1763531383559,3.34173393,3010.6,3010.0,0.001]
[1763531383758,1.72784032,3010.6,3010.0,0.001]
[1763531384378,3.34173393,3010.6,3010.0,0.001]
[1763531384900,1.72784032,3010.6,3010.0,0.001]
[1763531386399,1.72784032,3010.6,3010.1,0.405504]
[1763531386598,1.72784032,3010.5,3010.1,0.405504]
[1763531386970,1.72784032,3010.5,3010.0,0.001]
[1763531387673,1.72784032,3010.5,3010.1,0.405504]
[1763531387988,1.72784032,3010.7,3010.3,0.405504]
[1763531388191,1.72784032,3010.8,3010.1,0.405504]
[1763531388375,1.72784032,3010.7,3010.1,0.405504]
[1763531388570,1.72784032,3010.7,3010.0,0.03422259]
[1763531388785,1.72784032,3010.5,3010.1,0.03322148]
[1763531389009,1.72784032,3010.6,3010.0,0.001]
[1763531389214,1.72784032,3010.6,3010.1,0.405504]
[1763531389915,1.72784032,3010.6,3010.0,0.001]
[1763531390408,1.72784032,3010.5,3010.0,0.001]
[1763531391502,1.72784032,3010.5,3010.1,0.405504]
[1763531391702,1.72784032,3010.6,3010.1,0.405504]
[1763531392216,0.90899264,3011.1,3010.3,3.921504]
[1763531392217,1.72784032,3010.9,3010.3,3.921504]
[1763531392379,1.72784032,3010.9,3010.5,0.405504]
[1763531392708,1.72784032,3010.8,3010.7,0.405504]
[1763531392913,1.72784032,3010.8,3010.0,0.001]
[1763531393086,1.72784032,3010.8,3010.1,0.405504]
[1763531393411,1.72784032,3010.7,3010.6,0.405504]
[1763531393617,1.72784032,3010.7,3010.0,0.001]
[1763531393920,1.72784032,3010.7,3010.1,0.405504]
[1763531394410,1.72784032,3010.7,3010.0,0.001]
[1763531394614,1.72784032,3010.4,3010.0,0.001]
[1763531394822,2.2952993,3010.8,3010.0,0.001]
[1763531394823,1.72784032,3010.1,3010.0,0.001]
[1763531395125,2.2952993,3010.5,3010.0,0.001]
[1763531395282,2.2952993,3010.4,3010.0,0.001]
[1763531396029,0.52233622,3010.4,3010.1,0.405504]
[1763531396318,0.52233622,3010.4,3010.0,0.001]
[1763531396481,2.81763552,3010.4,3010.0,0.001]
[1763531396689,1.74086166,3010.2,3010.0,0.001]
[1763531396915,2.26319788,3010.4,3010.0,0.406504]
[1763531397115,0.52233622,3010.4,3010.2,0.405504]
[1763531397291,0.87072587,3010.3,3010.2,0.405504]
[1763531397486,0.87072587,3010.3,3010.2,0.88845366]
[1763531397884,0.87072587,3010.3,3010.0,0.001]
[1763531398105,0.87072587,3010.3,3010.1,0.405504]
[1763531398413,0.84306209,3010.5,3010.2,0.90699264]
[1763531398734,0.002,3011.0,3010.5,0.405504]
[1763531398917,0.002,3011.0,3010.7,0.405504]
[1763531398918,1.16327981,3011.0,3010.7,0.405504]
[1763531399089,1.16327981,3011.0,3010.9,0.405504]
[1763531399283,0.002,3011.0,3010.2,0.405504]
[1763531399483,1.16295782,3011.0,3010.4,0.405504]
[1763531399815,1.16095782,3010.9,3010.6,0.405504]
[1763531400007,1.00227213,3010.9,3010.2,0.405504]
[1763531400315,1.74286166,3011.0,3010.4,0.405504]
[1763531400821,1.74086166,3010.5,3010.0,0.001]
[1763531400987,2.2952993,3010.9,3010.0,0.001]
[1763531400988,1.74129156,3010.3,3010.0,0.001]
[1763531401188,1.74129156,3010.2,3010.0,0.001]
[1763531401796,1.74129156,3010.3,3010.0,0.001]
[1763531402126,0.002,3011.0,3010.0,0.001]
[1763531402127,1.74129156,3010.4,3010.0,0.001]
[1763531402504,0.002,3011.0,3010.1,0.405504]
[1763531402505,1.74129156,3010.6,3010.1,0.405504]
[1763531402940,1.74129156,3010.8,3010.1,0.405504]
[1763531403238,1.74129156,3010.6,3010.1,0.405504]
[1763531403438,1.74129156,3010.5,3010.2,0.03322038]
[1763531403749,1.74129156,3010.4,3010.0,0.001]
[1763531403951,1.74129156,3010.5,3010.0,0.001]
[1763531404245,0.002,3011.0,3010.0,0.001]
[1763531404246,1.74129156,3010.3,3010.0,0.001]
[1763531404755,1.74129156,3010.1,3010.0,0.001]
[1763531404953,2.7855993,3010.3,3010.0,0.001]
[1763531405158,0.4547,3010.1,3010.0,0.001]
[1763531405308,2.7499993,3010.1,3010.0,0.001]
[1763531405733,0.945,3010.1,3010.0,0.001]
[1763531405938,3.81372158,3010.1,3010.0,0.001]
[1763531406338,0.945,3010.1,3010.0,0.001]
[1763531406930,2.61824592,3010.1,3010.0,0.001]
[1763531407113,0.945,3010.1,3010.0,0.001]
[1763531407311,2.61824592,3010.1,3010.0,0.001]
[1763531407550,8.7395296,3010.1,3010.0,0.001]
[1763531407712,5.87080802,3010.1,3010.0,0.001]
[1763531407912,2.61824592,3010.1,3010.0,0.001]
[1763531408160,0.945,3010.1,3010.0,0.001]
[1763531409344,2.61824592,3010.1,3010.0,0.001]
[1763531410240,0.945,3010.1,3010.0,0.001]
[1763531410441,3.52523856,3010.1,3010.0,0.001]
[1763531410672,1.85399264,3010.1,3010.0,0.001]
[1763531410970,2.37652678,3010.1,3010.0,0.001]
[1763531411169,4.0497727,3010.1,3010.0,0.001]
[1763531411371,2.37652678,3010.1,3010.0,0.001]
[1763531411670,4.0497727,3010.1,3010.0,0.001]
[1763531411870,2.37652678,3010.1,3010.0,0.001]
[1763531412048,6.94209897,3010.1,3010.0,0.001]
[1763531412371,3.12068006,3010.1,3010.0,0.001]
[1763531412567,1.44743414,3010.1,3010.0,0.001]
[1763531412939,3.12068006,3010.1,3010.0,0.001]
[1763531413173,4.0276727,3010.1,3010.0,0.001]
[1763531414756,4.3263239,3010.1,3010.0,0.001]
[1763531416680,4.0276727,3010.1,3010.0,0.001]
[1763531417351,8.06100635,3010.1,3010.0,0.001]
[1763531417559,5.48076779,3010.1,3010.0,0.001]
[1763531417760,3.12068006,3010.1,3010.0,0.001]
[1763531417962,4.0276727,3010.1,3010.0,0.001]
[1763531419697,8.05867225,3010.1,3010.0,0.001]
[1763531420213,8.76282745,3010.1,3010.0,0.001]
[1763531420487,4.7318279,3010.1,3010.0,0.001]
[1763531420858,11.1918279,3010.1,3010.0,0.001]
[1763531421390,10.7863239,3010.1,3010.0,0.001]
[1763531421560,10.4876727,3010.1,3010.0,0.001]
[1763531422053,9.58068006,3010.1,3010.0,0.001]
[1763531422258,13.61219626,3010.1,3010.0,0.001]
[1763531422566,10.4876727,3010.1,3010.0,0.001]
[1763531423167,14.51963966,3010.1,3010.0,0.001]
[1763531425200,10.4876727,3010.1,3010.0,0.001]
[1763531425407,9.96513856,3010.1,3010.0,0.001]
[1763531425601,0.002,3010.1,3010.0,0.001]
[1763531425970,2.30699925,3010.1,3010.0,0.001]
[1763531426205,0.002,3010.1,3010.0,0.001]
[1763531430809,1.73548762,3010.1,3010.0,0.001]
[1763531431179,0.002,3010.1,3010.0,0.001]
[1763531431509,1.15571537,3010.6,3010.4,0.405504]
[1763531431812,0.002,3010.8,3010.1,0.405504]
[1763531432014,0.002,3010.8,3010.0,0.001]
[1763531432224,1.15571537,3010.5,3010.0,0.001]
[1763531432509,0.002,3010.8,3010.1,0.405504]
[1763531433030,0.002,3010.8,3010.3,0.405504]
[1763531434127,0.002,3010.8,3010.0,0.001]
[1763531434421,1.15571537,3010.6,3010.1,0.405504]
[1763531434609,1.15571537,3010.6,3010.0,0.001]
[1763531435726,1.15771537,3010.8,3010.1,0.405504]
[1763531435929,0.002,3010.8,3010.3,0.405504]
[1763531436226,0.52226444,3010.7,3010.3,0.405504]
[1763531436527,0.52226444,3010.7,3010.1,0.405504]
[1763531436709,0.52226444,3010.7,3010.1,0.43872548]
[1763531437639,0.002,3011.1,3010.1,0.43872548]
[1763531439335,0.002,3011.1,3010.3,3.920504]
[1763531439637,0.002,3011.1,3010.5,0.405504]
[1763531439840,0.002,3011.1,3010.6,0.03321597]
[1763531440251,0.0006,3011.4,3010.6,0.03321597]
[1763531440541,1.15571537,3013.2,3010.6,0.03321597]
[1763531440893,0.21285579,3013.2,3010.6,0.03321597]
[1763531441098,1.33961537,3013.4,3011.0,0.405504]
[1763531441296,0.1839,3013.4,3011.2,0.405504]
[1763531441496,0.39858648,3013.4,3011.4,0.405504]
[1763531441696,0.39858648,3013.4,3011.6,0.405504]
[1763531441697,0.1839,3013.4,3011.6,0.405504]
[1763531441937,0.1839,3013.4,3011.8,0.405504]
[1763531442134,1.60283222,3013.8,3011.8,0.405504]
[1763531442135,0.21517545,3013.5,3011.8,0.405504]
[1763531442448,0.21213996,3013.6,3012.0,0.405504]
[1763531442730,0.002,3013.8,3012.0,0.405504]
[1763531442911,0.002,3013.8,3012.2,0.405504]
[1763531444028,0.002,3013.8,3011.2,0.44219926]
[1763531444029,0.002,3013.8,3012.4,0.405504]
[1763531444397,0.002,3013.8,3012.6,0.405504]
[1763531445313,2.07703222,3013.8,3012.6,0.405504]
[1763531445510,2.07703222,3013.8,3012.7,0.03319281]
[1763531445715,0.4742,3013.7,3011.3,0.03320824]
[1763531445898,0.4742,3013.7,3011.4,0.405504]
[1763531446096,0.002,3013.8,3011.6,0.405504]
[1763531446300,0.002,3013.8,3011.8,0.405504]
[1763531446507,0.002,3013.8,3012.0,0.405504]
[1763531446714,0.002,3013.8,3012.2,0.405504]
[1763531446996,1.60283222,3013.8,3012.4,0.405504]
[1763531447200,2.07703222,3013.8,3012.6,0.405504]
[1763531447433,1.60283222,3013.8,3012.8,0.405504]
[1763531447750,2.14001273,3013.7,3012.8,0.405504]
[1763531447948,2.14001273,3013.7,3011.4,0.405504]
[1763531447949,0.4742,3013.7,3011.4,0.405504]
[1763531448137,0.002,3013.8,3011.6,0.405504]
[1763531448138,0.4742,3013.6,3011.6,0.405504]
[1763531448343,2.15428695,3013.6,3011.8,0.405504]
[1763531448652,2.15428695,3013.6,3011.7,0.03320383]
[1763531448653,0.4742,3013.6,3012.0,0.405504]
[1763531448851,0.4742,3013.6,3012.2,0.405504]
[1763531448852,0.4742,3013.5,3012.2,0.405504]
[1763531449165,0.002,3013.8,3012.4,0.405504]
[1763531449378,0.002,3013.8,3012.6,0.405504]
[1763531449379,2.14001273,3013.7,3012.6,0.405504]
[1763531449551,2.14001273,3013.7,3010.4,0.48274966]
[1763531449552,0.1843,3012.7,3011.3,0.03320824]
[1763531450265,0.1843,3012.7,3011.4,0.405504]
[1763531450447,0.1843,3012.7,3011.6,0.405504]
[1763531450619,0.1843,3012.7,3011.8,0.405504]
[1763531450819,0.1843,3012.7,3012.0,0.405504]
[1763531451055,0.6585,3012.7,3011.9,0.03320163]
[1763531451223,0.6585,3012.7,3010.8,0.03321376]
[1763531451454,0.6585,3012.7,3010.9,0.405504]
[1763531451626,0.4742,3012.6,3011.0,0.03321155]
[1763531452448,0.4742,3012.6,3011.1,0.405504]
[1763531452656,0.4742,3012.6,3010.6,0.90699264]
[1763531452657,0.4742,3012.6,3011.3,0.405504]
[1763531452854,0.4742,3012.6,3011.4,0.03320714]
[1763531453031,1.69087432,3012.5,3011.4,0.03320714]
[1763531453235,0.1843,3011.5,3010.8,0.03321376]
[1763531453436,0.6759,3011.5,3010.8,0.03321376]
[1763531453676,0.6585,3012.0,3010.6,0.03321597]
[1763531453981,0.6585,3012.0,3010.8,0.03321376]
[1763531454165,0.4742,3011.9,3010.8,0.03321376]
[1763531454322,0.4742,3011.9,3010.9,0.405504]
[1763531454946,0.4742,3011.9,3010.8,0.03321376]
[1763531455371,0.4742,3011.9,3010.9,0.405504]
[1763531455687,0.4742,3011.9,3011.0,0.03321155]
[1763531455849,0.17376865,3011.8,3010.7,0.03321486]
[1763531456056,1.63728052,3011.7,3010.7,0.44432149]
[1763531456271,2.11148052,3011.7,3010.7,0.44432149]
[1763531456481,0.4742,3011.6,3010.7,0.44432149]
[1763531456672,2.11223368,3011.6,3010.7,0.44432149]
[1763531456997,0.4742,3011.6,3010.7,0.44432149]
[1763531457203,1.63728052,3011.7,3010.7,0.44432149]
[1763531457493,0.4742,3011.5,3010.8,0.405504]
[1763531458158,0.1843,3011.4,3010.8,0.405504]
[1763531458562,0.6585,3011.4,3010.8,0.405504]
[1763531458877,0.4742,3011.7,3010.8,0.405504]
[1763531459076,0.86345924,3011.7,3010.8,0.405504]
[1763531459251,0.4742,3011.6,3010.8,0.405504]
[1763531459454,1.33765924,3011.6,3010.8,0.405504]
[1763531459854,0.4742,3011.5,3010.8,0.405504]
[1763531460385,0.4742,3011.5,3010.5,4.41]
[1763531460386,0.6759,3010.9,3010.5,4.41]
[1763531460692,2.53690801,3011.5,3010.6,0.03321597]
[1763531460693,0.86345924,3011.2,3010.6,0.03321597]
[1763531460890,0.86345924,3011.5,3010.6,0.405504]
[1763531461293,0.17376865,3011.8,3010.8,0.405504]
[1763531461457,0.17376865,3011.8,3011.0,0.405504]
[1763531461656,1.04775924,3012.0,3011.0,0.405504]
[1763531461852,0.4742,3011.9,3011.0,0.405504]
[1763531462060,0.86345924,3011.8,3011.0,0.405504]
[1763531462383,0.4742,3011.9,3010.9,0.03321266]
[1763531462384,0.86345924,3011.9,3010.9,0.405504]
[1763531462690,0.1843,3011.9,3011.1,0.405504]
[1763531463266,0.86345924,3012.0,3011.1,0.405504]
[1763531463571,0.86345924,3012.1,3011.1,0.405504]
[1763531464092,0.4742,3012.0,3011.1,0.405504]
[1763531464410,0.86345924,3011.7,3010.9,0.001]
[1763531464791,0.86345924,3011.8,3010.9,0.03421266]
[1763531465164,0.86345924,3011.9,3010.9,0.03421266]
[1763531465513,0.86345924,3011.8,3010.9,0.03421266]
[1763531465673,0.86345924,3011.8,3010.9,0.001]
[1763531466010,0.86345924,3011.7,3010.9,0.001]
[1763531466209,0.86345924,3011.8,3010.9,0.001]
[1763531466798,0.86345924,3011.7,3010.9,0.001]
[1763531467363,0.86345924,3011.8,3010.9,0.001]
[1763531467763,0.86345924,3011.8,3011.0,0.405504]
[1763531467959,0.86345924,3011.8,3011.1,0.3921504]
[1763531469003,0.86345924,3011.8,3010.9,3.921504]
[1763531469162,1.35315924,3011.8,3010.9,0.406504]
[1763531469359,0.86345924,3011.7,3010.9,0.406504]
[1763531470507,0.90699264,3011.6,3010.9,0.406504]
[1763531471004,0.90699264,3011.6,3010.9,3.921504]
[1763531471206,0.90699264,3011.6,3011.2,0.405504]
[1763531471609,0.90699264,3011.6,3011.1,3.515]
[1763531471610,0.90699264,3011.6,3011.0,0.3921504]
[1763531471803,0.90699264,3011.6,3011.0,3.9071504]
[1763531472006,0.90699264,3011.6,3011.1,0.405504]
[1763531472327,0.90699264,3011.1,3010.9,0.001]
[1763531472519,7.1289383,3011.2,3010.9,0.001]
[1763531472520,1.77045188,3011.2,3010.9,0.001]
[1763531473970,2.26015188,3011.2,3010.9,0.001]
[1763531474175,1.77045188,3011.2,3010.9,0.001]
[1763531474466,0.86345924,3011.1,3010.9,0.001]
[1763531474622,1.77045188,3011.2,3010.9,0.001]
[1763531475259,0.86345924,3011.2,3010.9,0.001]
[1763531475421,0.86864658,3011.4,3011.1,0.405504]
[1763531476041,0.86864658,3011.4,3010.9,0.001]
[1763531476042,0.86864658,3011.3,3010.9,0.001]
[1763531476248,0.86864658,3011.2,3010.9,0.001]
[1763531476947,0.86864658,3011.3,3010.9,0.001]
[1763531477322,0.86864658,3011.2,3010.9,0.001]
[1763531477521,0.86864658,3011.3,3011.0,0.405504]
[1763531477770,0.86864658,3011.5,3011.1,0.3921504]
[1763531477970,1.73348762,3011.9,3011.1,0.3921504]
[1763531477971,0.86864658,3011.6,3011.1,0.3921504]
[1763531478353,0.86864658,3011.8,3011.2,3.95371335]
[1763531478656,0.86864658,3012.0,3011.4,0.405504]
[1763531478989,0.52199508,3011.7,3011.6,0.405504]
[1763531479136,0.52199508,3011.7,3011.4,0.405504]
[1763531479342,0.52199508,3011.7,3011.6,0.405504]
[1763531479807,0.52199508,3011.7,3011.4,0.405504]
[1763531480090,0.52199508,3011.7,3011.0,0.405504]
[1763531480091,0.86864658,3011.5,3011.0,0.405504]
[1763531480286,0.86864658,3011.6,3010.9,0.406504]
[1763531480444,1.39064166,3011.7,3010.9,0.406504]
[1763531480942,1.39064166,3011.7,3011.1,3.920504]
[1763531481141,0.52199508,3011.7,3011.3,0.405504]
[1763531482162,1.39064166,3011.7,3011.5,0.405504]
[1763531482358,1.39064166,3011.7,3011.3,0.405504]
[1763531482588,0.52199508,3011.7,3011.5,0.405504]
[1763531482737,0.86864658,3012.2,3011.7,3.920504]
[1763531482941,0.86864658,3012.7,3011.9,3.920504]
[1763531483171,0.86864658,3012.7,3012.3,3.920504]
[1763531483477,1.15771537,3012.9,3012.3,3.920504]
[1763531483478,0.002,3012.9,3012.3,3.920504]